[Event "MPL-1 Indian Chess Tour 2022"]
[Site "Online"]
[Date "2022.03.27"]
[Round "8.2"]
[White "Puranik, Abhimanyu"]
[Black "Iniyan, P."]
[Result "1-0"]
[ECO "A47"]
[WhiteElo "2618"]
[BlackElo "2516"]
[Annotator "ChessBase"]
[PlyCount "101"]
[EventDate "2022.03.30"]
[EventType "tourn"]
[EventCountry "NET"]
[SourceTitle "playchess.com"]
[Source "ChessBase"]
[SourceQuality "1"]
[TimeControl "5400+30"]

1. d4 {[%emt 1:15:40]} Nf6 {[%emt 1:15:40]} 2. Nf3 {[%emt 0:00:22]} e6 {[%emt 0:00:22]} 3. Bf4 {[%emt 0:00:21]} b6 {[%emt 0:00:22]} 4. e3 {[%emt 0:00:22]} Bb7 {[%emt 0:00:21]} 5. h3 {[%emt 0:00:25]} Be7 {[%emt 0:00:21]} 6. Nbd2 {[%emt 0:00:21]} O-O {[%emt 0:00:22]} 7. Be2 {[%emt 0:00:23]} c5 {[%emt 0:00:31]} 8. O-O {[%emt 0:00:25]} Ba6 {[%emt 0:02:21]} 9. c4 {[%emt 0:00:57]} Nc6 {[%emt 0:00:52]} 10. dxc5 {[%emt 0:00:46]} bxc5 {[%emt 0:00:26]} 11. Ne5 {[%emt 0:00:21]} Nxe5 {[%emt 0:01:10]} 12. Bxe5 {[%emt 0:00:21]} d6 {[%emt 0:00:20]} 13. Bc3 {[%emt 0:00:26]} Rb8 {[%emt 0:00:47]} 14. Re1 {[%emt 0:01:13]} Bb7 {[%emt 0:01:07]} 15. Qc2 {[%emt 0:00:23]} Qb6 {[%emt 0:00:26]} 16. Bd3 {[%emt 0:00:27]} h6 {[%emt 0:01:39]} 17. Nf1 {[%emt 0:00:45]} Qc6 {[%emt 0:00:43]} 18. e4 {[%emt 0:00:33]} Nd7 {[%emt 0:00:25]} 19. f4 {[%emt 0:01:00]} Bf6 {[%emt 0:00:52]} 20. e5 {[%emt 0:00:42]} Bh4 {[%emt 0:00:26]} 21. Re2 {[%emt 0:00:39]} d5 {[%emt 0:00:48]} 22. cxd5 {[%emt 0:02:06]} exd5 {[%emt 0:00:20]} 23. b3 {[%emt 0:01:42]} Rfe8 {[%emt 0:01:07]} 24. Be1 {[%emt 0:01:03]} Bd8 {[%emt 0:02:48]} 25. Ne3 {[%emt 0:00:25]} Bb6 {[%emt 0:01:45]} 26. Kh2 {[%emt 0:00:32]} Bc7 {[%emt 0:00:24]} 27. Rd1 {[%emt 0:00:51]} d4 {[%emt 0:03:17]} 28. Nf5 {[%emt 0:01:18]} Kh8 {[%emt 0:00:22]} 29. Bg3 {[%emt 0:00:54]} f6 {[%emt 0:01:39]} 30. Rde1 {[%emt 0:02:48]} fxe5 {[%emt 0:00:49]} 31. fxe5 {[%emt 0:00:33]} Re6 {[%emt 0:02:00]} 32. Bc4 {[%emt 0:00:52]} Ba6 {[%emt 0:00:22]} 33. Bxe6 {[%emt 0:01:34]} Qxe6 {[%emt 0:00:20]} 34. Rf2 {[%emt 0:00:31]} Ba5 {[%emt 0:00:30]} 35. Re4 {[%emt 0:01:32]} d3 {[%emt 0:00:50]} 36. Qd1 {[%emt 0:00:25]} Rf8 {[%emt 0:00:21]} 37. Nd6 {[%emt 0:01:32]} Rxf2 {[%emt 0:00:22]} 38. Bxf2 {[%emt 0:00:20]} Nxe5 {[%emt 0:00:37]} 39. Bg3 {[%emt 0:01:06]} Qxd6 {[%emt 0:01:04]} 40. Bxe5 {[%emt 0:00:28]} Qd7 {[%emt 0:00:22]} 41. Qh5 {[%emt 0:01:44]} Bc7 {[%emt 0:01:00]} 42. Bxc7 {[%emt 0:00:57]} Qxc7+ {[%emt 0:00:20]} 43. Kg1 {[%emt 0:00:24]} Bb5 {[%emt 0:00:26]} 44. a4 {[%emt 0:00:50]} Bc6 {[%emt 0:00:47]} 45. Qxc5 {[%emt 0:00:29]} d2 {[%emt 0:00:20]} 46. Rd4 {[%emt 0:00:40]} Qg3 {[%emt 0:00:22]} 47. Rd8+ {[%emt 0:00:35]} Be8 {[%emt 0:00:23]} 48. Rxe8+ {[%emt 0:00:21]} Kh7 {[%emt 0:00:20]} 49. Qf5+ {[%emt 0:00:21]} Qg6 {[%emt 0:00:21]} 50. Qxg6+ {[%emt 0:00:21]} Kxg6 {[%emt 0:00:22]} 51. Rd8 {[%emt 0:00:20]} 1-0

[Event "MPL-1 Indian Chess Tour 2022"]
[Site "Online"]
[Date "2022.03.27"]
[Round "8.7"]
[White "Ganguly, Surya Shekhar"]
[Black "Karthikeyan, Murali"]
[Result "0-1"]
[ECO "E94"]
[WhiteElo "2627"]
[BlackElo "2622"]
[Annotator "ChessBase"]
[PlyCount "89"]
[EventDate "2022.03.30"]
[EventType "tourn"]
[EventCountry "NET"]
[SourceTitle "playchess.com"]
[Source "ChessBase"]
[SourceQuality "1"]
[TimeControl "5400+30"]

1. Nf3 {[%emt 1:15:40]} Nf6 {[%emt 1:15:40]} 2. c4 {[%emt 0:00:23]} g6 {[%emt 0:00:29]} 3. Nc3 {[%emt 0:00:24]} Bg7 {[%emt 0:00:23]} 4. e4 {[%emt 0:00:28]} d6 {[%emt 0:00:21]} 5. d4 {[%emt 0:00:21]} O-O {[%emt 0:00:22]} 6. Be2 {[%emt 0:00:24]} e5 {[%emt 0:00:23]} 7. O-O {[%emt 0:00:31]} Na6 {[%emt 0:00:22]} 8. Re1 {[%emt 0:00:39]} exd4 {[%emt 0:01:07]} 9. Nxd4 {[%emt 0:00:22]} Re8 {[%emt 0:00:21]} 10. Bf1 {[%emt 0:01:49]} c6 {[%emt 0:00:34]} 11. f3 {[%emt 0:02:03]} Qb6 {[%emt 0:02:59]} 12. Na4 {[%emt 0:01:26]} Qc7 {[%emt 0:00:47]} 13. Bg5 {[%emt 0:00:53]} Nc5 {[%emt 0:00:44]} 14. Nxc5 {[%emt 0:04:57]} dxc5 {[%emt 0:00:20]} 15. Ne2 {[%emt 0:00:20]} Nd7 {[%emt 0:01:08]} 16. Bf4 {[%emt 0:00:42]} Qb6 {[%emt 0:00:55]} 17. Rb1 {[%emt 0:00:27]} Nf8 {[%emt 0:00:40]} 18. Be3 {[%emt 0:00:37]} Ne6 {[%emt 0:01:14]} 19. b4 {[%emt 0:00:36]} Qa6 {[%emt 0:01:50]} 20. bxc5 {[%emt 0:00:28]} Qxa2 {[%emt 0:01:02]} 21. Qc1 {[%emt 0:00:21]} Qa5 {[%emt 0:00:45]} 22. Ng3 {[%emt 0:03:24]} Nxc5 {[%emt 0:00:33]} 23. Bh6 {[%emt 0:00:21]} Qc3 {[%emt 0:01:02]} 24. Qg5 {[%emt 0:00:45]} Ne6 {[%emt 0:01:41]} 25. Qh4 {[%emt 0:01:16]} Bxh6 {[%emt 0:02:02]} 26. Qxh6 {[%emt 0:00:22]} Qe5 {[%emt 0:00:23]} 27. Qc1 {[%emt 0:00:47]} a5 {[%emt 0:00:31]} 28. Ne2 {[%emt 0:00:44]} a4 {[%emt 0:00:46]} 29. Kh1 {[%emt 0:00:29]} a3 {[%emt 0:02:36]} 30. f4 {[%emt 0:00:22]} Qxe4 {[%emt 0:00:34]} 31. Ng3 {[%emt 0:00:21]} Qd4 {[%emt 0:00:28]} 32. f5 {[%emt 0:00:21]} Ng7 {[%emt 0:00:40]} 33. Rd1 {[%emt 0:01:21]} Qe5 {[%emt 0:01:07]} 34. fxg6 {[%emt 0:00:32]} hxg6 {[%emt 0:00:20]} 35. Ra1 {[%emt 0:00:20]} Bg4 {[%emt 0:01:11]} 36. Rd2 {[%emt 0:01:08]} Qe3 {[%emt 0:00:53]} 37. Qc2 {[%emt 0:01:12]} Nf5 {[%emt 0:00:30]} 38. Ne2 {[%emt 0:01:04]} Bxe2 {[%emt 0:00:45]} 39. Rxe2 {[%emt 0:00:21]} Nd4 {[%emt 0:00:54]} 40. Rxe3 {[%emt 0:00:21]} Nxc2 {[%emt 0:00:21]} 41. Rxe8+ {[%emt 0:00:20]} Rxe8 {[%emt 0:00:21]} 42. Ra2 {[%emt 0:00:20]} Ne3 {[%emt 0:00:34]} 43. Kg1 {[%emt 0:00:34]} Nxf1 {[%emt 0:00:21]} 44. Kxf1 {[%emt 0:00:20]} Re3 {[%emt 0:00:33]} 45. c5 {[%emt 0:00:28]} 0-1

[Event "MPL-1 Indian Chess Tour 2022"]
[Site "Online"]
[Date "2022.03.27"]
[Round "9.7"]
[White "Iniyan, P."]
[Black "Sankalp Gupta"]
[Result "0-1"]
[ECO "D10"]
[WhiteElo "2516"]
[BlackElo "2536"]
[Annotator "RC"]
[PlyCount "210"]
[EventDate "2022.03.30"]
[EventType "tourn"]
[EventCountry "NET"]
[SourceTitle "playchess.com"]
[Source "ChessBase"]
[SourceQuality "1"]
[TimeControl "5400+30"]

1. d4 {[%emt 1:15:40]} d5 {[%emt 1:15:40]} 2. c4 {[%emt 0:00:27]} dxc4 {[%emt 0:00:22]} 3. e4 {[%emt 0:00:22]} b5 {[%emt 0:00:31]} 4. a4 {[%emt 0:00:26]} c6 {[%emt 0:00:26]} 5. Nc3 {[%emt 0:00:26]} b4 {[%emt 0:00:21]} 6. Na2 {[%emt 0:00:24]} Nf6 {[%emt 0:00:33]} 7. e5 {[%emt 0:00:27]} Nd5 {[%emt 0:00:21]} 8. Bxc4 {[%emt 0:00:21]} e6 {[%emt 0:00:22]} 9. Nf3 {[%emt 0:00:30]} Be7 {[%emt 0:00:23]} 10. O-O {[%emt 0:00:33]} O-O {[%emt 0:00:33]} 11. Qe2 {[%emt 0:00:25]} a5 {[%emt 0:01:02]} 12. Bd2 {[%emt 0:00:43]} Ba6 {[%emt 0:01:42]} 13. Bxa6 {[%emt 0:00:28]} Nxa6 {[%emt 0:00:25]} 14. Nc1 {[%emt 0:00:21]} c5 {[%emt 0:00:33]} 15. Nb3 {[%emt 0:00:23]} cxd4 {[%emt 0:00:59]} 16. Nfxd4 {[%emt 0:00:20]} Nc5 {[%emt 0:01:46]} 17. Qg4 {[%emt 0:05:23]} Kh8 {[%emt 0:02:45]} 18. Nxc5 {[%emt 0:00:24]} Bxc5 {[%emt 0:00:23]} 19. Nf3 {[%emt 0:00:20]} Rc8 {[%emt 0:01:07]} 20. h4 {[%emt 0:04:02]} Be7 {[%emt 0:00:36]} 21. Ng5 {[%emt 0:01:12]} Bxg5 {[%emt 0:01:45]} 22. hxg5 {[%emt 0:00:20]} Qc7 {[%emt 0:00:24]} 23. Rad1 {[%emt 0:03:31]} Qxe5 {[%emt 0:00:44]} 24. b3 {[%emt 0:00:53]} Qb2 {[%emt 0:00:53]} 25. Bc1 {[%emt 0:01:35]} Qxb3 {[%emt 0:00:29]} 26. g6 {[%emt 0:00:20]} Nf6 {[%emt 0:01:25]} 27. Qg5 {[%emt 0:00:27]} fxg6 {[%emt 0:00:49]} 28. Qxa5 {[%emt 0:00:23]} Ra8 {[%emt 0:00:36]} 29. Qc5 {[%emt 0:00:29]} Qxa4 {[%emt 0:00:35]} 30. Rd4 {[%emt 0:00:24]} Nd5 {[%emt 0:00:31]} 31. Re4 {[%emt 0:00:25]} Qd7 {[%emt 0:01:31]} 32. Qd4 {[%emt 0:00:33]} Kg8 {[%emt 0:01:18]} 33. Bb2 {[%emt 0:00:25]} Rfe8 {[%emt 0:00:27]} 34. Rfe1 {[%emt 0:00:26]} Ra6 {[%emt 0:00:53]} 35. Qd3 {[%emt 0:00:30]} Rc6 {[%emt 0:00:32]} 36. Rxb4 {[%emt 0:00:23]} Rb6 {[%emt 0:01:37]} 37. Rxb6 {[%emt 0:00:47]} Nxb6 {[%emt 0:00:20]} 38. Qb3 {[%emt 0:00:30]} Nd5 {[%emt 0:00:26]} 39. Be5 {[%emt 0:00:27]} Qf7 {[%emt 0:00:38]} 40. Ra1 {[%emt 0:00:36]} h6 {[%emt 0:00:49]} 41. Qb2 {[%emt 0:00:26]} Kh7 {[%emt 0:00:34]} 42. Bd4 {[%emt 0:00:38]} Re7 {[%emt 0:01:03]} 43. Re1 {[%emt 0:01:23]} Rd7 {[%emt 0:00:51]} 44. Re4 {[%emt 0:01:26]} Ne7 {[%emt 0:00:43]} 45. Qe2 {[%emt 0:00:41]} Nf5 {[%emt 0:00:39]} 46. Bb2 {[%emt 0:00:25]} Rb7 {[%emt 0:00:28]} 47. Be5 {[%emt 0:00:38]} Qd7 {[%emt 0:00:33]} 48. Kh2 {[%emt 0:00:25]} Qd5 {[%emt 0:00:34]} 49. g4 {[%emt 0:00:32]} Rb1 {[%emt 0:01:21]} 50. Qc2 {[%emt 0:00:21]} Nd6 {[%emt 0:00:46]} 51. Bxd6 {[%emt 0:01:19]} Qxd6+ {[%emt 0:00:20]} 52. Kg2 {[%emt 0:00:22]} Rb6 {[%emt 0:00:29]} 53. Qc4 {[%emt 0:00:24]} Rc6 {[%emt 0:00:26]} 54. Qb3 {[%emt 0:00:23]} Qd5 {[%emt 0:00:49]} 55. Qxd5 {[%emt 0:00:21]} exd5 {[%emt 0:00:20]} 56. Rd4 {[%emt 0:00:19]} Rc4 {[%emt 0:00:26]} 57. Rxd5 {[%emt 0:00:22]} Rxg4+ {[%emt 0:00:21]} 58. Kh3 {[%emt 0:00:21]} Rf4 {[%emt 0:00:30]} 59. Kg3 {[%emt 0:00:21]} Rf6 {[%emt 0:00:24]} 60. Rc5 {[%emt 0:00:21]} g5 {[%emt 0:00:21]} 61. Rb5 {[%emt 0:00:24]} Kg6 {[%emt 0:00:21]} 62. Ra5 {[%emt 0:00:22]} Rb6 {[%emt 0:00:28]} 63. Ra8 {[%emt 0:00:23]} Rb3+ {[%emt 0:00:24]} 64. Kg2 {[%emt 0:00:21]} Rb6 {[%emt 0:00:55]} 65. Ra5 {[%emt 0:00:23]} Kh5 {[%emt 0:00:24]} 66. Ra7 {[%emt 0:00:23]} g6 {[%emt 0:00:24]} 67. Ra5 {[%emt 0:00:22]} Kg4 {[%emt 0:00:43]} 68. Ra4+ {[%emt 0:00:25]} Kf5 {[%emt 0:00:21]} 69. Ra5+ {[%emt 0:00:22]} Kf6 {[%emt 0:00:21]} 70. Ra8 {[%emt 0:00:21]} Re6 {[%emt 0:00:24]} 71. Rf8+ {[%emt 0:00:22]} Ke5 {[%emt 0:00:25]} 72. Kg3 {[%emt 0:00:37]} h5 {[%emt 0:00:29]} 73. Rf7 {[%emt 0:00:24]} Rf6 {[%emt 0:00:27]} 74. Re7+ {[%emt 0:00:22]} Kf5 {[%emt 0:00:24]} 75. Ra7 {[%emt 0:00:21]} g4 {[%emt 0:00:23]} 76. Ra5+ {[%emt 0:00:23]} Ke6 {[%emt 0:00:26]} 77. Ra6+ {[%emt 0:00:20]} Kf7 {[%emt 0:00:21]} 78. Ra7+ {[%emt 0:00:21]} Kg8 {[%emt 0:00:21]} 79. Ra2 {[%emt 0:00:36]} Kg7 {[%emt 0:00:22]} 80. Rb2 {[%emt 0:00:35]} Kh6 {[%emt 0:00:22]} 81. Rb8 {[%emt 0:00:22]} Kg5 {[%emt 0:00:22]} 82. Rb5+ {[%emt 0:00:26]} Rf5 {[%emt 0:00:21]} 83. Rb6 {[%emt 0:00:22]} h4+ {[%emt 0:00:25]} 84. Kg2 {[%emt 0:00:21]} Ra5 {[%emt 0:01:33]} 85. Rb2 {[%emt 0:00:30]} Rc5 {[%emt 0:00:37]} 86. Ra2 {[%emt 0:00:22]} Rb5 {[%emt 0:00:22]} 87. Rc2 {[%emt 0:00:21]} Rb3 {[%emt 0:00:41]} 88. Rc5+ {[%emt 0:00:21]} Kh6 {[%emt 0:00:22]} 89. Rc4 {[%emt 0:00:21]} Kh5 {[%emt 0:00:21]} 90. Rc5+ {[%emt 0:00:33]} g5 {[%emt 0:00:22]} 91. Rc2 {[%emt 0:00:23]} Ra3 {[%emt 0:00:31]} 92. Rb2 {[%emt 0:00:21]} Rc3 {[%emt 0:00:22]} 93. Ra2 {[%emt 0:00:25]} h3+ {[%emt 0:01:53]} 94. Kh2 {[%emt 0:00:23]} Rf3 {[%emt 0:00:20]} 95. Kg1 {[%emt 0:00:32]} g3 {[%emt 0:00:23]} 96. fxg3 {[%emt 0:00:20]} Rxg3+ {[%emt 0:00:21]} 97. Kh2 {[%emt 0:00:21]} Rg2+ {[%emt 0:00:45]} 98. Rxg2 {[%emt 0:00:24]} hxg2 {[%emt 0:00:20]} 99. Kg1 {[%emt 0:00:26]} Kh4 {[%emt 0:00:22]} 100. Kh2 {[%emt 0:00:36]} g1=Q+ {[%emt 0:00:28]} 101. Kxg1 {[%emt 0:00:21]} Kg3 {[%emt 0:00:21]} 102. Kh1 {[%emt 0:00:20]} g4 {[%emt 0:00:51]} 103. Kg1 {[%emt 0:00:21]} Kh3 {[%emt 0:00:20]} 104. Kh1 {[%emt 0:00:22]} g3 {[%emt 0:00:21]} 105. Kg1 {[%emt 0:00:23]} g2 {[%emt 0:00:20]} 0-1

[Event "MPL-1 Indian Chess Tour 2022"]
[Site "Online"]
[Date "2022.03.27"]
[Round "9.8"]
[White "Lalith Babu M R"]
[Black "Puranik, Abhimanyu"]
[Result "0-1"]
[ECO "A36"]
[WhiteElo "2563"]
[BlackElo "2618"]
[Annotator "RC"]
[PlyCount "144"]
[EventDate "2022.03.30"]
[EventType "tourn"]
[EventCountry "NET"]
[SourceTitle "playchess.com"]
[Source "ChessBase"]
[SourceQuality "1"]
[TimeControl "5400+30"]

1. c4 {[%emt 1:15:40]} c5 {[%emt 1:15:40]} 2. Nc3 {[%emt 0:00:23]} Nf6 {[%emt 0:00:22]} 3. g3 {[%emt 0:00:20]} Nc6 {[%emt 0:00:32]} 4. Bg2 {[%emt 0:00:21]} g6 {[%emt 0:00:22]} 5. a3 {[%emt 0:00:28]} Bg7 {[%emt 0:00:46]} 6. Rb1 {[%emt 0:00:21]} e6 {[%emt 0:01:22]} 7. b4 {[%emt 0:00:22]} cxb4 {[%emt 0:00:22]} 8. axb4 {[%emt 0:00:21]} d5 {[%emt 0:00:20]} 9. b5 {[%emt 0:00:47]} Ne7 {[%emt 0:00:28]} 10. cxd5 {[%emt 0:01:14]} exd5 {[%emt 0:00:23]} 11. d3 {[%emt 0:00:43]} d4 {[%emt 0:01:06]} 12. Na4 {[%emt 0:00:24]} Nfd5 {[%emt 0:01:00]} 13. Nf3 {[%emt 0:02:34]} Qa5+ {[%emt 0:00:57]} 14. Bd2 {[%emt 0:00:38]} Nc3 {[%emt 0:00:22]} 15. Bxc3 {[%emt 0:00:20]} dxc3 {[%emt 0:00:21]} 16. O-O {[%emt 0:00:23]} O-O {[%emt 0:00:22]} 17. Qc2 {[%emt 0:00:24]} Nd5 {[%emt 0:01:46]} 18. d4 {[%emt 0:05:42]} Bg4 {[%emt 0:05:12]} 19. e4 {[%emt 0:00:55]} Bxf3 {[%emt 0:02:49]} 20. Bxf3 {[%emt 0:00:22]} Nb6 {[%emt 0:00:21]} 21. Nxb6 {[%emt 0:01:12]} Qxb6 {[%emt 0:00:23]} 22. Qxc3 {[%emt 0:00:23]} Bxd4 {[%emt 0:00:21]} 23. Qb3 {[%emt 0:00:20]} Rac8 {[%emt 0:00:31]} 24. e5 {[%emt 0:01:02]} Rc5 {[%emt 0:01:28]} 25. Bd5 {[%emt 0:03:18]} Bxe5 {[%emt 0:00:23]} 26. Rfe1 {[%emt 0:00:26]} Bf6 {[%emt 0:01:01]} 27. Qf3 {[%emt 0:00:31]} Kg7 {[%emt 0:00:24]} 28. Bxb7 {[%emt 0:01:04]} Rf5 {[%emt 0:00:24]} 29. Qg2 {[%emt 0:00:30]} Rxf2 {[%emt 0:00:39]} 30. Qc6 {[%emt 0:00:21]} Qd4 {[%emt 0:01:38]} 31. Qd5 {[%emt 0:00:45]} h5 {[%emt 0:01:11]} 32. Qxd4 {[%emt 0:00:50]} Bxd4 {[%emt 0:00:23]} 33. Kh1 {[%emt 0:00:20]} h4 {[%emt 0:00:27]} 34. Re4 {[%emt 0:00:22]} Bf6 {[%emt 0:01:07]} 35. Kg1 {[%emt 0:00:50]} hxg3 {[%emt 0:00:22]} 36. hxg3 {[%emt 0:00:21]} Rd2 {[%emt 0:00:22]} 37. Rbe1 {[%emt 0:00:44]} Bd4+ {[%emt 0:00:43]} 38. Kf1 {[%emt 0:00:27]} Rf2+ {[%emt 0:01:11]} 39. Kg1 {[%emt 0:00:21]} Bb6 {[%emt 0:00:23]} 40. Kh1 {[%emt 0:00:30]} Rh8+ {[%emt 0:01:27]} 41. Rh4 {[%emt 0:00:21]} Rxh4+ {[%emt 0:00:21]} 42. gxh4 {[%emt 0:00:21]} Kh6 {[%emt 0:00:21]} 43. Re5 {[%emt 0:00:39]} Rf4 {[%emt 0:00:34]} 44. Kg2 {[%emt 0:00:45]} Rxh4 {[%emt 0:00:22]} 45. Bc6 {[%emt 0:00:21]} Rf4 {[%emt 0:00:23]} 46. Re8 {[%emt 0:00:22]} f5 {[%emt 0:00:24]} 47. Rg8 {[%emt 0:00:21]} Rf2+ {[%emt 0:00:26]} 48. Kg3 {[%emt 0:00:21]} Rd2 {[%emt 0:00:52]} 49. Rh8+ {[%emt 0:00:28]} Kg5 {[%emt 0:00:22]} 50. Rg8 {[%emt 0:00:22]} Bf2+ {[%emt 0:00:46]} 51. Kf3 {[%emt 0:00:25]} Bb6 {[%emt 0:00:26]} 52. Kg3 {[%emt 0:00:21]} Rd8 {[%emt 0:00:26]} 53. Rg7 {[%emt 0:00:27]} Kf6 {[%emt 0:00:29]} 54. Rh7 {[%emt 0:00:23]} Rd3+ {[%emt 0:00:24]} 55. Kg2 {[%emt 0:00:21]} g5 {[%emt 0:00:21]} 56. Rh8 {[%emt 0:00:21]} Rd2+ {[%emt 0:00:23]} 57. Kf1 {[%emt 0:00:24]} g4 {[%emt 0:00:23]} 58. Rf8+ {[%emt 0:00:24]} Ke5 {[%emt 0:00:26]} 59. Bb7 {[%emt 0:00:21]} g3 {[%emt 0:00:36]} 60. Rg8 {[%emt 0:00:22]} Rf2+ {[%emt 0:00:25]} 61. Ke1 {[%emt 0:00:21]} f4 {[%emt 0:00:45]} 62. Re8+ {[%emt 0:00:30]} Kd6 {[%emt 0:00:26]} 63. Rg8 {[%emt 0:00:22]} Ba5+ {[%emt 0:00:41]} 64. Kd1 {[%emt 0:00:21]} Kc5 {[%emt 0:00:27]} 65. Rg5+ {[%emt 0:00:25]} Kb4 {[%emt 0:00:28]} 66. Bc6 {[%emt 0:00:23]} Bb6 {[%emt 0:00:31]} 67. Ke1 {[%emt 0:00:22]} Kc3 {[%emt 0:00:27]} 68. Rg7 {[%emt 0:00:25]} Ra2 {[%emt 0:00:43]} 69. Kf1 {[%emt 0:00:22]} Rf2+ {[%emt 0:00:31]} 70. Ke1 {[%emt 0:00:21]} Bd4 {[%emt 0:00:23]} 71. Rg8 {[%emt 0:00:23]} Kd3 {[%emt 0:00:44]} 72. Rg6 {[%emt 0:01:08]} Bc3+ {[%emt 0:00:23]} 0-1

[Event "MPL-1 Indian Chess Tour 2022"]
[Site "Online"]
[Date "2022.03.27"]
[Round "10.1"]
[White "Sethuraman, S.P."]
[Black "Puranik, Abhimanyu"]
[Result "1/2-1/2"]
[ECO "C77"]
[WhiteElo "2619"]
[BlackElo "2618"]
[Annotator "RC"]
[PlyCount "152"]
[EventDate "2022.03.30"]
[EventType "tourn"]
[EventCountry "NET"]
[SourceTitle "playchess.com"]
[Source "ChessBase"]
[SourceQuality "1"]
[TimeControl "5400+30"]

1. e4 {[%emt 1:15:40]} e5 {[%emt 1:15:40]} 2. Nf3 {[%emt 0:00:23]} Nc6 {[%emt 0:00:25]} 3. Bb5 {[%emt 0:00:21]} a6 {[%emt 0:00:27]} 4. Ba4 {[%emt 0:00:21]} Nf6 {[%emt 0:00:21]} 5. d3 {[%emt 0:00:21]} Bc5 {[%emt 0:00:22]} 6. c3 {[%emt 0:00:22]} b5 {[%emt 0:00:25]} 7. Bb3 {[%emt 0:00:26]} d6 {[%emt 0:00:23]} 8. Bg5 {[%emt 0:00:26]} h6 {[%emt 0:00:30]} 9. Bh4 {[%emt 0:00:21]} g5 {[%emt 0:01:04]} 10. Bg3 {[%emt 0:00:23]} Bb6 {[%emt 0:00:27]} 11. a4 {[%emt 0:00:22]} Rb8 {[%emt 0:01:01]} 12. O-O {[%emt 0:00:36]} Qe7 {[%emt 0:00:33]} 13. Re1 {[%emt 0:01:02]} h5 {[%emt 0:01:35]} 14. h4 {[%emt 0:00:27]} Bg4 {[%emt 0:00:36]} 15. axb5 {[%emt 0:00:31]} axb5 {[%emt 0:00:23]} 16. Nbd2 {[%emt 0:01:40]} Rg8 {[%emt 0:00:42]} 17. d4 {[%emt 0:01:16]} Kf8 {[%emt 0:02:42]} 18. Qc2 {[%emt 0:01:41]} gxh4 {[%emt 0:02:25]} 19. Bxh4 {[%emt 0:01:53]} exd4 {[%emt 0:00:23]} 20. e5 {[%emt 0:02:39]} dxe5 {[%emt 0:02:09]} 21. Ng5 {[%emt 0:04:21]} Qd7 {[%emt 0:01:19]} 22. Nde4 {[%emt 0:01:35]} Nxe4 {[%emt 0:01:04]} 23. Qxe4 {[%emt 0:00:24]} f5 {[%emt 0:01:11]} 24. Qd5 {[%emt 0:02:16]} Qxd5 {[%emt 0:00:22]} 25. Bxd5 {[%emt 0:00:20]} Rg6 {[%emt 0:00:46]} 26. Bxc6 {[%emt 0:01:25]} Rxc6 {[%emt 0:00:26]} 27. Rxe5 {[%emt 0:00:21]} d3 {[%emt 0:01:32]} 28. Kh2 {[%emt 0:01:05]} Be2 {[%emt 0:01:15]} 29. Ne6+ {[%emt 0:01:04]} Kg8 {[%emt 0:00:57]} 30. Nf4 {[%emt 0:00:38]} Rc4 {[%emt 0:00:50]} 31. Bg5 {[%emt 0:00:49]} Bc5 {[%emt 0:01:49]} 32. g3 {[%emt 0:00:39]} Bd6 {[%emt 0:00:32]} 33. Rxf5 {[%emt 0:00:22]} Re8 {[%emt 0:01:01]} 34. Nxe2 {[%emt 0:00:26]} Rxe2 {[%emt 0:00:49]} 35. Rd1 {[%emt 0:00:22]} h4 {[%emt 0:00:23]} 36. Kh3 {[%emt 0:00:35]} hxg3 {[%emt 0:00:21]} 37. fxg3 {[%emt 0:00:20]} Rxb2 {[%emt 0:00:34]} 38. Rxd3 {[%emt 0:00:21]} Rc2 {[%emt 0:01:05]} 39. Bd2 {[%emt 0:00:32]} Re4 {[%emt 0:00:32]} 40. Rxb5 {[%emt 0:00:27]} Ra2 {[%emt 0:00:28]} 41. Rf5 {[%emt 0:00:39]} Kg7 {[%emt 0:00:30]} 42. Be3 {[%emt 0:00:51]} Kg6 {[%emt 0:00:26]} 43. Rg5+ {[%emt 0:00:21]} Kf6 {[%emt 0:00:21]} 44. Rg4 {[%emt 0:00:29]} Rxg4 {[%emt 0:00:46]} 45. Kxg4 {[%emt 0:00:21]} Be5 {[%emt 0:00:20]} 46. Bd4 {[%emt 0:00:35]} Ra4 {[%emt 0:00:30]} 47. Kf3 {[%emt 0:00:32]} Rc4 {[%emt 0:00:27]} 48. Bxe5+ {[%emt 0:00:46]} Kxe5 {[%emt 0:00:21]} 49. Re3+ {[%emt 0:00:24]} Kf5 {[%emt 0:00:23]} 50. Ke2 {[%emt 0:00:24]} c5 {[%emt 0:00:33]} 51. Kd3 {[%emt 0:00:37]} Rg4 {[%emt 0:00:21]} 52. Kc2 {[%emt 0:00:21]} Kf6 {[%emt 0:00:27]} 53. Kb3 {[%emt 0:00:24]} Kf5 {[%emt 0:00:22]} 54. Kc2 {[%emt 0:00:40]} Kf6 {[%emt 0:00:24]} 55. Kd3 {[%emt 0:00:34]} Kf5 {[%emt 0:00:21]} 56. Ke2 {[%emt 0:00:24]} Rc4 {[%emt 0:00:24]} 57. Kf3 {[%emt 0:00:24]} Kg5 {[%emt 0:00:24]} 58. Rd3 {[%emt 0:00:27]} Kf5 {[%emt 0:00:29]} 59. Ke2 {[%emt 0:00:27]} Kf6 {[%emt 0:00:39]} 60. Kd2 {[%emt 0:00:40]} Rg4 {[%emt 0:00:21]} 61. Kc2 {[%emt 0:00:25]} Ke5 {[%emt 0:00:27]} 62. Re3+ {[%emt 0:00:24]} Kf5 {[%emt 0:00:28]} 63. Kb3 {[%emt 0:00:34]} Kf6 {[%emt 0:00:22]} 64. Rf3+ {[%emt 0:00:41]} Ke5 {[%emt 0:00:26]} 65. Kc2 {[%emt 0:00:28]} Ke4 {[%emt 0:00:49]} 66. Rd3 {[%emt 0:00:29]} Ke5 {[%emt 0:00:36]} 67. Kd2 {[%emt 0:00:21]} Ke6 {[%emt 0:00:29]} 68. Rf3 {[%emt 0:00:23]} Ke5 {[%emt 0:00:37]} 69. Ke2 {[%emt 0:00:21]} Ke4 {[%emt 0:00:23]} 70. Kf2 {[%emt 0:00:24]} Ke5 {[%emt 0:00:36]} 71. Kf1 {[%emt 0:00:25]} Rg8 {[%emt 0:00:37]} 72. Kg2 {[%emt 0:00:27]} Ke4 {[%emt 0:00:25]} 73. Rf4+ {[%emt 0:01:03]} Kd3 {[%emt 0:00:21]} 74. Rf3+ {[%emt 0:00:25]} Ke4 {[%emt 0:00:29]} 75. Kf2 {[%emt 0:00:29]} Rg4 {[%emt 0:00:42]} 76. Kg2 {[%emt 0:00:37]} Rg8 {[%emt 0:00:23]} 1/2-1/2

[Event "MPL-1 Indian Chess Tour 2022"]
[Site "Online"]
[Date "2022.03.27"]
[Round "10.3"]
[White "Erigaisi Arjun"]
[Black "Iniyan, P."]
[Result "1-0"]
[ECO "A46"]
[WhiteElo "2633"]
[BlackElo "2516"]
[Annotator "RC"]
[PlyCount "61"]
[EventDate "2022.03.30"]
[EventType "tourn"]
[EventCountry "NET"]
[SourceTitle "playchess.com"]
[Source "ChessBase"]
[SourceQuality "1"]
[TimeControl "5400+30"]

1. d4 {[%emt 1:15:40]} Nf6 {[%emt 1:15:40]} 2. Nf3 {[%emt 0:00:22]} b6 {[%emt 0:00:24]} 3. Bg5 {[%emt 0:00:23]} Bb7 {[%emt 0:00:22]} 4. Nbd2 {[%emt 0:00:23]} e6 {[%emt 0:00:25]} 5. e4 {[%emt 0:00:24]} Be7 {[%emt 0:00:21]} 6. Bd3 {[%emt 0:00:26]} h6 {[%emt 0:00:58]} 7. Bxf6 {[%emt 0:01:33]} Bxf6 {[%emt 0:00:20]} 8. e5 {[%emt 0:00:21]} Be7 {[%emt 0:00:23]} 9. Be4 {[%emt 0:00:21]} c6 {[%emt 0:02:00]} 10. Qe2 {[%emt 0:00:42]} Qc7 {[%emt 0:00:23]} 11. O-O {[%emt 0:01:16]} d5 {[%emt 0:01:18]} 12. exd6 {[%emt 0:01:12]} Bxd6 {[%emt 0:00:21]} 13. Nc4 {[%emt 0:00:37]} Nd7 {[%emt 0:00:22]} 14. Nxd6+ {[%emt 0:00:48]} Qxd6 {[%emt 0:00:20]} 15. c4 {[%emt 0:00:20]} O-O {[%emt 0:00:47]} 16. Rac1 {[%emt 0:00:23]} Rac8 {[%emt 0:00:45]} 17. Qe3 {[%emt 0:00:35]} Rfd8 {[%emt 0:02:10]} 18. c5 {[%emt 0:00:24]} Qe7 {[%emt 0:00:24]} 19. Qa3 {[%emt 0:01:06]} a5 {[%emt 0:01:05]} 20. Rfe1 {[%emt 0:01:40]} bxc5 {[%emt 0:00:42]} 21. dxc5 {[%emt 0:00:20]} Nf6 {[%emt 0:00:20]} 22. Bc2 {[%emt 0:00:46]} Nd5 {[%emt 0:01:19]} 23. Ne5 {[%emt 0:01:16]} Qg5 {[%emt 0:00:48]} 24. g3 {[%emt 0:01:31]} Ba6 {[%emt 0:03:00]} 25. Qxa5 {[%emt 0:01:22]} Be2 {[%emt 0:00:23]} 26. Nxc6 {[%emt 0:01:49]} Nf4 {[%emt 0:03:14]} 27. h4 {[%emt 0:01:25]} Qf6 {[%emt 0:01:01]} 28. gxf4 {[%emt 0:00:24]} Qxf4 {[%emt 0:00:38]} 29. Qb4 {[%emt 0:01:07]} Bc4 {[%emt 0:00:21]} 30. Bh7+ {[%emt 0:00:41]} Kxh7 {[%emt 0:00:59]} 31. Rxc4 {[%emt 0:00:20]} 1-0